bitfinex/quotes_SOLUSD_20251128
["timestamp","ask_amount","ask_price","bid_price","bid_amount"]
[1764325404030,0.96432314,142.2,142.17,3.32780175]
[1764325404256,0.68,142.19,142.17,3.32780175]
[1764325408331,9.09426806,142.18,142.16,0.1]
[1764325408532,3.38432314,142.17,142.16,3.42780175]
[1764325408734,4.06432314,142.17,142.16,3.42780175]
[1764325409025,3.1,142.17,142.16,3.42780175]
[1764325409334,3.78,142.17,142.16,3.42780175]
[1764325410464,0.28432314,142.19,142.16,3.42780175]
[1764325410637,3.1,142.17,142.16,3.42780175]
[1764325414561,3.1,142.17,142.16,2.22983537]
[1764325416847,3.1,142.17,142.16,0.1]
[1764325418236,3.1,142.17,142.16,2.22983537]
[1764325419639,3.1,142.17,142.16,0.1]
[1764325420956,3.77,142.17,142.16,0.1]
[1764325421152,3.1,142.17,142.16,0.1]
[1764325421555,3.77,142.17,142.16,0.1]
[1764325421741,22.02793616,142.17,142.16,0.1]
[1764325422537,22.02793616,142.17,142.1,2.12983537]
[1764325422538,9.09426806,142.16,142.1,2.12983537]
[1764325422736,2.12983537,142.15,142.1,2.12983537]
[1764325422937,3.1,142.14,142.1,2.12983537]
[1764325423137,3.77,142.14,142.1,2.12983537]
[1764325423740,0.67,142.13,142.1,2.12983537]
[1764325423941,3.77,142.14,142.11,2.12983537]
[1764325424865,3.77,142.14,142.1,0.11]
[1764325425062,3.77,142.14,142.09,0.1]
[1764325425063,0.67,142.13,142.09,0.1]
[1764325425254,0.67,142.13,142.11,2.12983537]
[1764325426164,0.67,142.13,142.1,2.12983537]
[1764325427170,0.67,142.13,142.11,2.12983537]
[1764325428658,3.1,142.14,142.12,2.12983537]
[1764325428845,3.77,142.14,142.12,2.12983537]
[1764325429449,3.77,142.14,142.1,0.11]
[1764325429450,3.1,142.14,142.13,2.12983537]
[1764325430063,3.77,142.14,142.13,2.12983537]
[1764325430243,3.1,142.14,142.13,2.12983537]
[1764325431364,3.77,142.14,142.13,2.12983537]
[1764325432069,3.1,142.14,142.13,2.12983537]
[1764325432451,3.1,142.14,142.13,2.23983537]
[1764325433871,3.1,142.14,142.13,0.11]
[1764325434067,3.1,142.14,142.13,2.12983537]
[1764325437153,3.1,142.14,142.12,0.11]
[1764325437375,3.1,142.14,142.11,9.16636099]
[1764325437674,3.77,142.14,142.11,9.16636099]
[1764325437970,3.1,142.14,142.11,9.27636099]
[1764325438383,3.77,142.14,142.11,9.27636099]
[1764325438957,3.1,142.16,142.14,16.308864]
[1764325439158,0.67,142.15,142.13,16.308864]
[1764325440058,0.67,142.15,142.11,25.47538177]
[1764325440260,0.67,142.15,142.11,25.58538177]
[1764325442193,0.67,142.15,142.1,9.27692987]
[1764325442491,0.67,142.15,142.11,18.43869937]
[1764325442661,2.79983537,142.15,142.11,16.308864]
[1764325443060,0.67,142.14,142.11,16.308864]
[1764325443588,0.67,142.14,142.11,18.43869937]
[1764325443780,0.67,142.14,142.11,25.47544545]
[1764325444781,0.67,142.15,142.11,25.58544545]
[1764325445288,0.67,142.18,142.14,2.12983537]
[1764325445496,3.1,142.16,142.13,2.12983537]
[1764325445988,3.1,142.16,142.13,2.23983537]
[1764325446174,3.77,142.16,142.13,2.23983537]
[1764325446568,3.77,142.16,142.13,9.2755931]
[1764325446762,3.77,142.16,142.13,26.86512381]
[1764325447160,3.77,142.16,142.13,26.75512381]
[1764325447384,3.1,142.16,142.14,2.12983537]
[1764325448687,3.77,142.16,142.14,2.12983537]
[1764325450294,3.77,142.16,142.15,7.03482237]
[1764325455407,3.77,142.16,142.13,24.62534299]
[1764325456704,0.71,142.15,142.13,24.62534299]
[1764325459815,0.71,142.15,142.13,26.75517836]
[1764325460705,3.1,142.16,142.13,26.75517836]
[1764325460913,3.81,142.16,142.13,26.75517836]
[1764325461214,3.81,142.16,142.15,7.03482237]
[1764325462506,3.1,142.16,142.15,7.03482237]
[1764325463298,3.81,142.16,142.15,7.03482237]
[1764325464520,0.28432314,142.14,142.1,7.03707059]
[1764325464703,2.12983537,142.13,142.1,7.03707059]
[1764325464911,3.1,142.12,142.1,7.03707059]
[1764325465098,0.71,142.11,142.1,7.03707059]
[1764325465615,3.81,142.12,142.1,7.03707059]
[1764325466116,0.71,142.15,142.11,2.23983537]
[1764325466324,3.1,142.14,142.12,2.12983537]
[1764325467122,3.1,142.14,142.13,2.12983537]
[1764325467705,3.1,142.14,142.13,9.16564765]
[1764325467903,3.81,142.14,142.13,9.16564765]
[1764325468228,3.1,142.14,142.13,9.16564765]
[1764325468524,0.71,142.15,142.13,9.16564765]
[1764325468717,3.1,142.14,142.13,9.16564765]
[1764325470137,3.81,142.14,142.13,9.16564765]
[1764325476552,3.81,142.14,142.13,3.32915571]
[1764325478154,3.81,142.14,142.13,10.36496799]
[1764325480053,3.24216157,142.18,142.13,10.47496799]
[1764325480351,0.71,142.2,142.17,3.32915571]
[1764325480526,0.71,142.2,142.16,16.308864]
[1764325480727,0.14216157,142.19,142.16,16.308864]
[1764325480960,3.1,142.18,142.16,16.308864]
[1764325481141,3.1,142.18,142.13,37.11993524]
[1764325481457,0.71,142.17,142.14,3.32915571]
[1764325482154,0.71,142.17,142.15,7.03482237]
[1764325482346,0.71,142.17,142.15,10.36397808]
[1764325483355,0.71,142.17,142.15,7.03482237]
[1764325483536,0.71,142.17,142.15,10.36397808]
[1764325486954,0.71,142.17,142.15,3.32915571]
[1764325488265,0.71,142.17,142.16,7.03432751]
[1764325493042,3.1,142.18,142.16,10.36348322]
[1764325493243,3.81,142.18,142.17,3.32915571]
[1764325494563,3.81,142.18,142.17,10.36298844]
[1764325494743,3.81,142.18,142.13,51.48785302]
[1764325494744,3.81,142.18,142.13,33.89765438]
[1764325495061,0.71,142.17,142.15,3.32915571]
[1764325496065,8.80994492,142.16,142.1,9.16543654]
[1764325496251,3.32915571,142.15,142.07,37.30323195]
[1764325496455,3.81,142.14,142.1,19.63801971]
[1764325496652,3.81,142.14,142.11,3.32915571]
[1764325496975,0.71,142.13,142.11,3.32915571]
[1764325497339,0.71,142.13,142.11,27.95692847]
[1764325502174,3.1,142.14,142.12,3.32915571]
[1764325502380,3.1,142.14,142.13,19.63801971]
[1764325502674,3.1,142.14,142.13,19.74801971]
[1764325503457,3.1,142.14,142.13,16.308864]
[1764325503788,3.1,142.14,142.13,19.63801971]
[1764325504572,3.1,142.14,142.13,26.67383199]
[1764325504777,3.1,142.14,142.13,26.78383199]
[1764325506152,3.1,142.14,142.13,26.67383199]
[1764325506779,0.71,142.17,142.13,44.3733627]
[1764325507077,0.71,142.17,142.16,3.32915571]
[1764325508065,3.81,142.17,142.16,10.36348322]
[1764325509883,0.71,142.17,142.16,10.36348322]
[1764325510181,3.1,142.17,142.16,27.94930201]
[1764325512157,3.77,142.17,142.16,27.94930201]
[1764325512354,0.67,142.17,142.16,3.32915571]
[1764325512571,3.77,142.17,142.16,3.32915571]
[1764325513677,3.77,142.17,142.16,10.36348322]
[1764325516182,0.28432314,142.2,142.16,27.94930201]
[1764325516383,3.78,142.19,142.17,3.32915571]
[1764325516681,3.78,142.19,142.16,24.6201463]
[1764325516885,3.78,142.19,142.17,3.32915571]
[1764325518485,3.78,142.19,142.16,17.58581879]
[1764325518486,3.78,142.19,142.18,10.36249373]
[1764325520282,3.78,142.19,142.18,7.03333802]
[1764325520480,3.78,142.19,142.18,10.36249373]
[1764325520979,3.78,142.19,142.18,7.03333802]
[1764325521582,0.68,142.19,142.18,10.36249373]
[1764325521894,16.12760608,142.18,142.09,0.1]
[1764325522065,3.32915571,142.13,142.09,0.1]
[1764325522263,6.73347885,142.12,142.09,0.1]
[1764325522495,3.40432314,142.12,142.09,0.1]
[1764325522694,0.58,142.11,142.09,0.1]
[1764325523786,0.58,142.11,142.09,7.13772818]
[1764325524467,3.40432314,142.12,142.09,7.85772818]
[1764325524667,3.40432314,142.12,142.09,7.13772818]
[1764325524874,7.31347885,142.12,142.09,7.13772818]
[1764325526061,3.32915571,142.11,142.09,0.1]
[1764325526585,3.32915571,142.11,142.09,7.13773548]
[1764325526966,3.32915571,142.11,142.09,0.1]
[1764325527865,3.32915571,142.1,142.09,7.13774296]
[1764325528175,3.98432314,142.12,142.09,7.13774296]
[1764325528176,3.32915571,142.11,142.09,7.13774296]
[1764325530183,3.32915571,142.11,142.09,7.85774296]
[1764325530975,6.59131728,142.12,142.09,7.85774296]
[1764325531175,7.17131728,142.12,142.09,7.85774296]
[1764325531499,7.17131728,142.12,142.1,0.72]
[1764325531500,3.12,142.12,142.1,0.72]
[1764325532189,3.12,142.12,142.1,7.75697395]
[1764325532581,6.44915571,142.12,142.1,7.75697395]
[1764325533797,3.90915571,142.11,142.09,7.13770938]
[1764325533975,3.32915571,142.1,142.09,0.1]
[1764325534582,3.32915571,142.11,142.09,0.1]
[1764325537202,3.32915571,142.11,142.09,7.13773997]
[1764325538603,2.13243097,142.11,142.09,7.13773997]
[1764325538899,2.13243097,142.11,142.09,7.85773997]
[1764325541706,2.71243097,142.11,142.09,7.13773997]
[1764325542208,2.13243097,142.11,142.09,7.80773997]
[1764325542595,2.71243097,142.11,142.09,7.13773997]
[1764325542783,2.13243097,142.11,142.09,7.13773997]
[1764325542982,2.71243097,142.11,142.09,7.13773997]
[1764325543913,2.13243097,142.1,142.09,0.1]
[1764325549006,2.13243097,142.1,142.09,7.13779294]
[1764325549205,2.13243097,142.11,142.09,0.1]
[1764325552312,2.13243097,142.1,142.09,0.1]
[1764325557020,2.13243097,142.1,142.09,0.77]
[1764325557320,2.13243097,142.1,142.09,7.80779294]
[1764325558197,2.13243097,142.1,142.09,7.13779294]
[1764325558704,5.25243097,142.12,142.09,7.80779294]
[1764325558902,5.25243097,142.12,142.1,0.67]
[1764325559918,2.13243097,142.11,142.09,0.1]
[1764325560217,2.71243097,142.11,142.09,0.1]
[1764325560414,2.71243097,142.11,142.09,7.13773475]
[1764325563125,2.13243097,142.11,142.09,7.13773475]
[1764325564018,2.13243097,142.11,142.09,0.1]
[1764325564315,2.13243097,142.11,142.09,0.77]
[1764325566816,2.13243097,142.11,142.09,7.80771291]
[1764325569429,2.41675411,142.11,142.1,0.67]
[1764325569632,2.13243097,142.11,142.09,7.80771291]
[1764325573527,0.28432314,142.11,142.09,7.80771291]
[1764325578733,0.28432314,142.11,142.1,0.71]
[1764325579031,3.12,142.12,142.1,7.74729767]
[1764325579737,3.40432314,142.12,142.11,0.71]
[1764325579912,3.40432314,142.12,142.1,7.74729767]
[1764325580436,0.28432314,142.11,142.09,0.1]
[1764325580611,2.13243097,142.1,142.09,0.1]
[1764325580813,25.01578357,142.1,142.09,0.1]
[1764325581138,25.59578357,142.1,142.09,0.1]
[1764325588445,30.17275396,142.1,142.09,0.1]
[1764325589520,30.75275396,142.1,142.09,0.1]
[1764325590546,30.17275396,142.1,142.09,0.1]
[1764325591743,28.04032299,142.1,142.09,0.1]
[1764325591948,30.17275396,142.1,142.09,0.1]
[1764325592744,12.19426806,142.1,142.09,0.1]
[1764325592937,12.19426806,142.1,142.09,0.81]
[1764325593137,3.38432314,142.1,142.09,0.81]
[1764325593541,3.38432314,142.1,142.09,7.84779294]
[1764325594326,3.1,142.1,142.09,7.84779294]
[1764325596133,10.42162081,142.1,142.09,0.1]
[1764325596337,13.13405178,142.1,142.09,0.1]
[1764325596541,25.11880892,142.08,142.07,2.0]
[1764325596742,32.44142034,142.08,142.07,2.0]
[1764325596934,35.05385131,142.08,142.07,2.0]
[1764325597248,37.87482525,142.08,142.07,2.0]
[1764325598947,40.97482525,142.08,142.07,2.0]
[1764325600542,42.17635464,142.08,142.07,2.0]
[1764325618152,41.69635464,142.08,142.07,2.0]
[1764325620463,42.17635464,142.08,142.06,0.1]
[1764325620650,12.90822842,142.07,142.06,0.1]
[1764325621042,15.72940132,142.07,142.06,0.1]
[1764325622966,22.76818501,142.07,142.06,0.1]
[1764325628763,22.28818501,142.07,142.06,0.1]
[1764325632870,22.76818501,142.07,142.06,0.1]
[1764325633173,22.28818501,142.07,142.06,0.1]
[1764325633657,22.76818501,142.07,142.06,0.1]
[1764325634151,22.28818501,142.07,142.06,0.1]
[1764325635783,22.28818501,142.07,142.02,0.1]
[1764325635784,9.09426806,142.03,142.02,0.1]
[1764325635970,18.86218878,142.03,142.02,1e-08]
[1764325636279,26.38295481,142.03,142.02,1e-08]
[1764325636468,29.20512294,142.03,142.02,1e-08]
[1764325641088,50.35512294,142.03,142.02,1e-08]
[1764325646476,18.67287908,142.03,142.02,0.72000001]
[1764325646871,21.77287908,142.03,142.02,0.72000001]
[1764325647574,22.05720222,142.03,142.02,0.72000001]
[1764325647889,25.24900101,142.03,142.02,0.72000001]
[1764325648194,25.39116258,142.03,142.02,0.72000001]
[1764325650475,22.05720222,142.03,142.02,0.72000001]
[1764325650676,25.39116258,142.03,142.02,0.72000001]
[1764325650882,22.05720222,142.03,142.02,0.72000001]
[1764325652182,25.39116258,142.03,142.02,0.72000001]
[1764325657304,22.05720222,142.03,142.02,0.72000001]
[1764325658106,25.39116258,142.03,142.02,0.72000001]
[1764325659910,22.05720222,142.03,142.02,0.72000001]
[1764325661106,25.39116258,142.03,142.02,0.72000001]
[1764325662085,22.05720222,142.03,142.02,0.72000001]
[1764325662605,24.19232754,142.03,142.02,0.72000001]
[1764325663898,22.05720222,142.03,142.02,0.72000001]
[1764325664379,24.19232754,142.03,142.02,0.72000001]
[1764325665110,22.05720222,142.03,142.02,0.72000001]
[1764325665311,24.19232754,142.03,142.02,0.72000001]
[1764325665507,22.05720222,142.03,142.02,0.72000001]
[1764325665809,24.19232754,142.03,142.02,0.72000001]
[1764325667782,22.05720222,142.03,142.02,0.72000001]
[1764325669210,24.67232754,142.03,142.02,1e-08]
[1764325669716,24.19232754,142.03,142.02,1e-08]
[1764325674097,24.67232754,142.03,142.02,1e-08]
[1764325675419,49.52169282,142.03,142.02,1e-08]
[1764325680325,0.28432314,142.02,142.01,0.1]
[1764325680504,11.22939338,142.02,142.01,0.1]
[1764325680703,11.70939338,142.02,142.01,0.1]
[1764325681423,14.53156151,142.02,142.01,0.1]
[1764325681719,11.91643619,142.02,142.01,0.77]
[1764325681925,14.05156151,142.02,142.01,0.77]
[1764325682100,21.0928233,142.02,142.01,0.1]
[1764325684123,21.0928233,142.02,142.01,0.77]
[1764325686929,18.95769798,142.02,142.01,0.77]
[1764325689632,21.0928233,142.02,142.01,0.77]
[1764325693036,21.0928233,142.02,142.01,0.1]
[1764325693357,21.0928233,142.02,142.01,0.8]
[1764325696132,21.0928233,142.02,142.01,0.1]
[1764325696443,21.0928233,142.02,142.01,0.8]
[1764325697343,21.0928233,142.02,142.01,0.1]
[1764325697720,21.0928233,142.02,142.01,0.8]
[1764325704623,18.95769798,142.02,142.01,0.8]
[1764325704941,21.77337484,142.02,142.01,0.8]
[1764325705325,21.91553641,142.02,142.01,0.8]
[1764325705526,22.05769798,142.02,142.01,0.8]
[1764325724766,15.01643619,142.02,142.01,0.8]
[1764325734680,22.05769798,142.02,142.01,0.8]
[1764325739174,25.87392402,142.02,142.01,0.1]
[1764325739365,25.39392402,142.02,142.01,0.1]
[1764325739673,25.25176245,142.02,142.01,0.1]
[1764325741384,25.10960088,142.02,142.01,0.1]
[1764325742679,25.25176245,142.02,142.01,0.1]
[1764325744187,25.39392402,142.02,142.01,0.1]
[1764325745677,15.01643619,142.02,142.01,0.76]
[1764325753897,22.05769798,142.02,142.01,0.76]
[1764325754892,22.05769798,142.02,142.01,0.1]
[1764325755471,22.05769798,142.02,142.01,0.79]
[1764325755982,25.39392402,142.02,142.01,0.79]
[1764325757678,22.05769798,142.02,142.01,0.79]
[1764325764509,0.28432314,142.01,141.98,2.95042593]
[1764325764809,3.1,142.0,141.98,2.95042593]
[1764325765112,20.71028458,142.0,141.98,2.95042593]
[1764325765709,20.71028458,142.0,141.98,9.99340889]
[1764325766486,20.71028458,142.0,141.99,0.67]
[1764325766987,20.71028458,142.0,141.99,4.00622604]
[1764325768603,20.71028458,142.0,141.99,0.67]
[1764325775113,20.71028458,142.0,141.99,4.00622604]
[1764325782626,20.71028458,142.0,141.99,2.80517098]
[1764325784536,20.71028458,142.0,141.99,0.67]
[1764325784707,20.71028458,142.0,141.99,2.80517098]
[1764325787941,20.71028458,142.0,141.99,0.67]
[1764325791442,3.1,142.0,141.99,2.80517098]
[1764325791619,14.868864,142.03,142.02,16.308864]
[1764325791931,3.1,142.08,142.02,26.9847189]
[1764325792110,3.1,142.07,142.03,8.54068392]
[1764325792724,3.1,142.07,142.02,16.308864]
[1764325792927,3.1,142.07,142.02,31.177728]
[1764325793128,3.1,142.07,142.06,2.13517098]
[1764325793834,3.81,142.07,142.0,32.617728]
[1764325794009,3.81,142.07,142.05,2.13517098]
[1764325794336,19.388864,142.07,142.06,2.13517098]
[1764325801817,18.678864,142.07,142.06,2.13517098]
[1764325802021,3.1,142.07,142.06,2.13517098]
[1764325802546,3.81,142.07,142.06,2.13517098]
[1764325803948,16.308864,142.08,142.06,2.13517098]
[1764325804119,0.2,142.15,142.07,2.13517098]
[1764325804323,8.80994492,142.13,142.12,2.13517098]
[1764325804724,9.51994492,142.13,142.12,2.13517098]
[1764325805443,19.32421298,142.13,142.12,2.13517098]
[1764325807242,0.28432314,142.12,142.1,2.13517098]
[1764325807426,3.38432314,142.11,142.1,2.13517098]
[1764325807633,3.38432314,142.11,142.09,2.13517098]
[1764325807836,0.71,142.1,142.07,16.308864]
[1764325808035,0.71,142.1,142.09,2.13517098]
[1764325809042,9.80426806,142.1,142.08,2.13517098]
[1764325809431,0.71,142.09,142.08,2.13517098]
[1764325810442,0.71,142.09,142.07,2.13517098]
[1764325810762,3.1,142.08,142.07,2.13517098]
[1764325811126,3.81,142.08,142.07,2.13517098]
[1764325811843,3.81,142.08,142.06,2.13517098]
[1764325812749,3.81,142.08,142.06,9.17399498]
[1764325822056,3.81,142.08,142.07,2.13517098]
[1764325822230,3.1,142.08,142.07,2.13517098]
[1764325822958,3.8,142.08,142.07,2.13517098]
[1764325824358,3.8,142.08,142.07,9.17395467]
[1764325834761,3.8,142.08,142.06,2.13517098]
[1764325834971,0.7,142.07,142.06,2.13517098]
[1764325835139,0.7,142.07,142.05,9.17462955]
[1764325835759,0.7,142.07,142.05,2.13517098]
[1764325835963,0.7,142.07,141.98,9.09426806]
[1764325835964,0.28432314,142.05,141.99,17.60687372]
[1764325836143,0.28432314,142.02,141.97,2.13517098]
[1764325836346,0.28432314,142.0,141.97,2.13517098]
[1764325836567,0.28432314,142.0,141.98,2.13517098]
[1764325836743,0.7,141.99,141.98,2.13517098]
[1764325837067,0.98432314,142.0,141.94,0.1]
[1764325837241,0.7,141.99,141.97,2.13517098]
[1764325837437,3.1,141.98,141.97,2.13517098]
[1764325840583,3.79,141.98,141.94,0.1]
[1764325840744,3.1,141.98,141.97,2.13517098]
[1764325842765,3.1,141.98,141.97,3.33648652]
[1764325852957,3.1,141.98,141.94,16.408864]
[1764325853173,3.1,141.98,141.97,3.33648652]
[1764325854291,0.28432314,142.03,141.97,3.33648652]
[1764325854462,3.79,142.02,141.97,3.33648652]
[1764325854663,3.1,142.02,142.01,3.33648652]
[1764325855367,3.79,142.02,142.01,3.33648652]
[1764325858078,3.1,142.02,142.01,3.33648652]
[1764325862593,0.69,142.04,142.01,3.33648652]
[1764325862793,3.1,142.03,141.99,16.308864]
[1764325863171,3.79,142.03,141.99,16.308864]
[1764325863875,3.79,142.03,142.02,3.33648652]
[1764325866166,0.69,142.06,142.02,3.33648652]
[1764325866381,3.1,142.05,141.99,23.35148933]
[1764325866878,3.79,142.05,141.99,23.35148933]
[1764325867493,3.79,142.05,142.04,3.33648652]
[1764325877590,3.1,142.05,142.04,3.33648652]
[1764325878986,3.77,142.05,142.04,3.33648652]
[1764325879794,3.77,142.05,142.02,16.308864]
[1764325879992,3.77,142.05,142.04,3.33648652]
[1764325883613,3.1,142.05,142.04,3.33648652]
[1764325890319,0.28432314,142.09,142.04,3.33648652]
[1764325890320,3.1,142.09,142.04,10.37675686]
[1764325890518,3.1,142.09,142.08,3.33648652]
[1764325890821,3.77,142.09,142.08,3.33648652]
[1764325895126,3.1,142.09,142.08,3.33648652]
[1764325895824,0.67,142.11,142.08,3.33648652]
[1764325896016,3.77,142.12,142.1,6.67297304]
[1764325896213,3.77,142.12,142.11,3.33648652]
[1764325896612,3.1,142.12,142.11,3.33648652]
[1764325898528,0.67,142.14,142.11,3.33648652]
[1764325898713,3.77,142.14,142.13,3.33648652]
[1764325901225,3.77,142.14,142.11,3.33648652]
[1764325901524,0.66,142.13,142.11,3.33648652]
[1764325903131,0.66,142.13,142.09,19.64535052]
[1764325903728,0.94432314,142.13,142.08,3.33648652]
[1764325904119,0.66,142.12,142.08,3.33648652]
[1764325904429,0.66,142.12,142.09,3.33648652]
[1764325904626,0.66,142.12,142.09,2.13171696]
[1764325904927,0.66,142.12,142.08,18.44058096]
[1764325907327,0.66,142.12,142.07,2.13171696]
[1764325907532,2.79171696,142.12,142.07,18.44058096]
[1764325907915,0.66,142.11,142.07,18.44058096]
[1764325912042,3.1,142.1,142.07,18.44058096]
[1764325912415,0.66,142.09,142.07,18.44058096]
[1764325913348,0.66,142.09,142.07,16.308864]
[1764325913521,0.66,142.09,142.06,2.13171696]
[1764325913720,0.66,142.09,142.07,2.13171696]
[1764325916633,0.66,142.09,142.06,2.13171696]
[1764325920147,0.66,142.09,142.05,16.308864]
[1764325920446,0.66,142.09,142.06,2.13171696]
[1764325920933,0.66,142.09,142.05,16.308864]
[1764325921836,0.66,142.09,142.05,18.44058096]
[1764325922043,0.66,142.09,142.06,2.13171696]
[1764325922349,0.66,142.09,142.05,18.44058096]
[1764325922559,0.66,142.09,142.06,2.13171696]
[1764325922728,3.1,142.08,142.06,2.13171696]
[1764325923045,3.1,142.08,142.07,2.13171696]
[1764325923738,0.66,142.11,142.07,2.13171696]
[1764325923939,3.76,142.11,142.08,2.13171696]
[1764325924952,3.1,142.11,142.1,2.13171696]
[1764325925133,3.1,142.11,142.09,2.13171696]
[1764325925746,3.76,142.11,142.08,2.13171696]
[1764325926148,11.14166188,142.15,142.05,0.70397747]
[1764325926340,0.66,142.1,142.08,2.13171696]
[1764325926742,0.66,142.11,142.09,16.308864]
[1764325927654,0.66,142.11,142.09,18.44058096]
[1764325929352,0.66,142.11,142.09,2.13171696]
[1764325931369,0.66,142.11,142.1,2.13171696]
[1764325933450,0.69,142.14,142.1,2.13171696]
[1764325933656,3.1,142.12,142.1,8.52686784]
[1764325933857,3.1,142.12,142.09,23.34631828]
[1764325934853,3.1,142.12,142.11,2.13171696]
[1764325936062,0.2,142.15,142.11,2.13171696]
[1764325936257,3.99,142.15,142.14,2.13171696]
[1764325936764,3.99,142.15,142.14,0.31975796]
[1764325936941,3.99,142.15,142.14,2.13171696]
[1764325937477,3.99,142.15,142.1,3.99]
[1764325937647,3.99,142.15,142.14,2.13171696]
[1764325939358,3.3,142.15,142.14,2.13171696]
[1764325939566,3.99,142.15,142.14,2.13171696]
[1764325940275,3.3,142.15,142.14,2.13171696]
[1764325940770,3.3,142.15,142.1,20.298864]
[1764325941099,3.99,142.15,142.13,2.13171696]
[1764325941960,3.99,142.15,142.14,2.13171696]
[1764325942573,3.3,142.15,142.14,2.13171696]
[1764325942952,3.99,142.15,142.14,2.13171696]
[1764325944675,3.99,142.15,142.13,2.13171696]
[1764325945680,3.99,142.15,142.14,2.13171696]
[1764325946488,0.89,142.15,142.14,2.13171696]
[1764325946667,3.99,142.15,142.14,2.13171696]
[1764325949279,3.99,142.15,142.13,2.13171696]
[1764325950064,0.69,142.14,142.11,18.44058096]
[1764325951286,0.69,142.14,142.12,2.13171696]
[1764325954487,0.97432314,142.14,142.07,3.99]
[1764325954699,0.97432314,142.14,142.08,2.13171696]
[1764325954700,3.1060401,142.14,142.08,2.13171696]
[1764325954996,0.69,142.13,142.08,2.13171696]
[1764325955297,18.28989053,142.13,142.08,2.13171696]
[1764325955477,0.69,142.12,142.09,2.13171696]
[1764325955679,3.1,142.11,142.09,2.13171696]
[1764325955881,3.1,142.11,142.08,2.13171696]
[1764325956195,0.69,142.1,142.08,2.13171696]
[1764325957692,0.69,142.1,142.09,2.13171696]
[1764325957990,0.69,142.1,142.08,2.13171696]
[1764325962285,0.69,142.1,142.09,2.13171696]
[1764325962788,0.69,142.1,142.08,2.13171696]
[1764325964691,0.69,142.1,142.09,2.13171696]
[1764325966683,0.69,142.1,142.08,3.3307837]
[1764325972503,0.69,142.1,142.09,3.3307837]
[1764325974494,3.8,142.11,142.09,3.3307837]
[1764325974801,0.7,142.1,142.09,3.3307837]
[1764325975499,3.8,142.11,142.09,3.3307837]
[1764325975804,3.8,142.11,142.1,3.3307837]
[1764325979199,0.7,142.13,142.1,3.3307837]
[1764325979421,3.1,142.12,142.09,23.34660585]
[1764325979782,3.8,142.12,142.09,23.34660585]
[1764325980686,3.8,142.12,142.11,3.3307837]
[1764325985214,0.7,142.12,142.11,3.3307837]
[1764325985415,3.8,142.12,142.11,3.3307837]
[1764325985720,0.7,142.12,142.11,3.3307837]
[1764325985890,3.8,142.12,142.11,3.3307837]
[1764325987714,0.7,142.12,142.11,3.3307837]
[1764325987911,3.8,142.12,142.11,3.3307837]
[1764325992018,3.8,142.12,142.07,3.3307837]
[1764325992197,0.71,142.11,142.07,3.3307837]
[1764325992397,0.99432314,142.11,142.03,3.3307837]
[1764325992599,0.99432314,142.11,142.07,3.3307837]
[1764325992897,0.71,142.1,142.07,3.3307837]
[1764326000830,0.71,142.1,142.06,3.3307837]
[1764326001155,3.61510684,142.09,142.04,3.3307837]
[1764326001327,3.1,142.08,142.04,3.3307837]
[1764326001528,3.77,142.08,142.04,3.3307837]
[1764326001731,0.67,142.07,142.04,3.3307837]
[1764326001933,0.95432314,142.07,142.04,3.3307837]
[1764326002134,0.95432314,142.07,142.03,3.3307837]
[1764326002307,0.95432314,142.07,142.02,3.3307837]
[1764326002308,0.67,142.06,142.02,3.3307837]
[1764326002506,0.28432314,142.05,142.02,3.3307837]
[1764326002702,3.1,142.04,142.02,3.3307837]
[1764326003033,3.77,142.04,142.02,3.3307837]
[1764326003230,0.67,142.03,142.02,3.3307837]